bitfinex/quotes_ETHUSD_20250808
["timestamp","ask_amount","ask_price","bid_price","bid_amount"]
[1754680171117,3.856,4050.6,4050.5,3.0]
[1754680171288,1.37518219,4051.7,4050.7,3.0]
[1754680171289,3.9792,4051.2,4050.7,3.0]
[1754680171485,3.856,4051.1,4051.0,2.46852628]
[1754680172317,3.856,4051.1,4050.9,3.0]
[1754680172527,3.856,4051.1,4051.0,2.46852628]
[1754680173619,3.856,4051.1,4051.0,17.74077057]
[1754680173836,0.1232,4051.2,4051.1,2.46846535]
[1754680174134,3.856,4051.4,4051.2,5.4683516]
[1754680174437,3.856,4051.3,4051.2,3.0]
[1754680174804,3.9792,4051.3,4051.2,5.46840442]
[1754680175238,5.4002,4051.3,4050.1,2.46902875]
[1754680175509,5.4002,4051.3,4049.3,12.27324429]
[1754680175510,2.46876095,4050.7,4049.3,12.27324429]
[1754680175711,4.8492,4050.6,4049.4,2.46945572]
[1754680176018,4.8492,4050.6,4049.4,5.46945572]
[1754680176218,2.46887358,4050.5,4049.6,2.46937243]
[1754680176430,2.46889797,4050.4,4049.6,2.46937243]
[1754680176739,7.31801038,4050.6,4049.5,2.469424]
[1754680176942,3.44749952,4050.5,4049.4,2.46948626]
[1754680177320,3.44749952,4050.5,4049.8,2.469212]
[1754680177530,1.50778357,4050.5,4049.8,2.46920556]
[1754680177834,1.50778357,4050.5,4049.9,3.0]
[1754680178040,1.50778357,4050.5,4050.1,2.4690624]
[1754680178241,0.4607,4050.4,4050.0,2.46912166]
[1754680178922,0.4607,4050.3,4049.5,2.46944067]
[1754680179134,3.856,4050.2,4050.1,2.46905239]
[1754680179307,4.3167,4050.2,4049.5,3.0]
[1754680179639,4.3167,4050.2,4049.7,2.46931871]
[1754680179838,4.3167,4050.2,4049.7,3.0]
[1754680180031,3.856,4050.2,4050.0,2.46912441]
[1754680180422,3.856,4050.2,4050.1,2.46907483]
[1754680180618,0.5295143,4050.4,4049.6,2.46937969]
[1754680180818,3.855,4050.3,4050.0,2.46911942]
[1754680181023,3.855,4050.3,4049.9,2.46918167]
[1754680181225,3.855,4050.3,4049.5,3.0]
[1754680181633,3.855,4050.3,4050.1,2.46903131]
[1754680182124,3.855,4050.3,4050.2,2.46901387]
[1754680182312,0.5295143,4050.5,4050.3,2.46890014]
[1754680182512,3.855,4050.4,4050.2,2.46901041]
[1754680182712,3.855,4050.4,4050.3,5.46895291]
[1754680183144,3.855,4050.4,4050.0,3.0]
[1754680183454,0.5295143,4051.0,4050.8,2.46861024]
[1754680183638,3.855,4050.9,4050.8,2.46861024]
[1754680183817,3.855,4050.9,4050.6,2.46876775]
[1754680183818,0.5295143,4051.0,4050.6,3.0]
[1754680184234,1.36074489,4051.1,4050.6,3.0]
[1754680184436,1.36074489,4051.1,4051.0,2.46852628]
[1754680184637,5.21574489,4051.1,4051.0,14.74077057]
[1754680184839,5.74525919,4051.1,4051.0,14.74077057]
[1754680185072,5.74525919,4051.1,4051.0,17.74077057]
[1754680185211,5.21574489,4051.1,4051.0,3.0]
[1754680185415,7.26190141,4051.1,4049.9,3.0]
[1754680185727,2.18307876,4051.0,4049.3,12.65354429]
[1754680186051,2.46880555,4050.6,4049.7,2.4692691]
[1754680186255,4.38538203,4050.5,4049.9,2.46919141]
[1754680186550,4.84608203,4050.4,4049.9,2.46919141]
[1754680186711,0.53038203,4050.3,4049.7,2.46925878]
[1754680186912,0.9942,4050.3,4049.8,2.46925214]
[1754680187253,0.4607,4050.2,4050.0,2.46913341]
[1754680187456,0.4607,4050.2,4049.8,2.46924078]
[1754680187831,0.4607,4050.2,4049.9,2.46918629]
[1754680188235,0.53038203,4050.3,4049.4,3.0]
[1754680188442,0.53038203,4050.3,4049.8,2.46920737]
[1754680188644,0.53038203,4050.3,4049.9,2.46919404]
[1754680188819,0.4607,4050.2,4049.7,2.46927259]
[1754680189020,0.4607,4050.1,4049.7,2.46927259]
[1754680189249,4.3157,4050.0,4049.7,2.46927259]
[1754680189451,4.3157,4050.0,4049.6,2.46936385]
[1754680189668,4.3157,4050.0,4049.4,5.46946143]
[1754680189871,1.5321582,4049.9,4049.4,3.0]
[1754680190167,3.855,4050.0,4049.6,2.46937969]
[1754680190352,3.855,4050.0,4049.8,2.46925233]
[1754680190552,3.855,4050.0,4049.8,2.46925774]
[1754680190764,3.855,4050.0,4049.9,2.46919677]
[1754680190929,4.38569537,4050.0,4049.9,2.46919677]
[1754680191121,3.855,4050.0,4049.9,2.46919677]
[1754680191324,4.38569537,4050.0,4049.9,2.46919677]
[1754680191548,4.3157,4050.0,4049.9,2.46919677]
[1754680191750,4.84639537,4050.0,4049.9,2.46919677]
[1754680191955,4.38569537,4050.0,4049.9,2.46919677]
[1754680192154,3.855,4050.0,4049.9,2.46919677]
[1754680192732,3.855,4050.0,4049.8,2.46921014]
[1754680192932,0.4607,4049.9,4049.7,2.46930725]
[1754680193253,0.9942,4049.8,4049.3,0.001]
[1754680193558,3.855,4049.7,4049.3,2.4705625]
[1754680193854,3.855,4049.7,4049.5,2.46940623]
[1754680194647,3.855,4049.7,4049.6,2.46937969]
[1754680195332,0.1232,4049.6,4049.3,0.001]
[1754680195532,1.0384,4049.6,4049.3,2.47056256]
[1754680195756,0.9152,4049.5,4049.3,0.001]
[1754680195954,3.855,4049.4,4049.3,0.001]
[1754680196152,4.2848,4049.4,4049.3,0.001]
[1754680196342,4.2848,4049.4,4049.3,2.47056264]
[1754680196543,4.2848,4049.4,4049.3,0.001]
[1754680197360,5.02107227,4049.4,4049.3,0.001]
[1754680197537,5.50647227,4049.4,4049.3,0.001]
[1754680198160,7.97597392,4049.4,4049.3,0.001]
[1754680198466,9.05668559,4049.4,4049.3,0.001]
[1754680198660,9.71518232,4049.4,4049.3,0.001]
[1754680198961,9.05668559,4049.4,4049.3,0.001]
[1754680199160,9.71955722,4049.4,4049.3,0.001]
[1754680199348,5.86453643,4049.4,4049.3,0.001]
[1754680199551,5.98773643,4049.4,4049.3,0.001]
[1754680199752,9.17988559,4049.4,4049.3,0.001]
[1754680200145,5.32488559,4049.4,4049.3,0.001]
[1754680200347,9.17988559,4049.4,4049.3,0.001]
[1754680200766,6.16038394,4049.4,4049.3,0.001]
[1754680201139,8.62988559,4049.4,4049.3,0.001]
[1754680201560,9.17988559,4049.4,4049.3,0.001]
[1754680201739,0.55,4049.3,4047.2,0.499]
[1754680202055,2.4702171,4048.3,4047.3,2.47078299]
[1754680202256,3.855,4048.2,4047.7,2.47053882]
[1754680202446,0.1232,4047.8,4047.7,15.27224429]
[1754680202765,0.1232,4048.0,4047.9,2.47041675]
[1754680202967,3.855,4048.3,4048.2,2.47022993]
[1754680203265,3.9782,4048.3,4048.1,5.47027773]
[1754680203867,3.855,4048.2,4048.1,3.0]
[1754680204056,4.2848,4048.2,4048.1,3.0]
[1754680204255,4.2848,4048.2,4048.1,6.07106462]
[1754680204567,0.1232,4048.5,4048.1,6.07106462]
[1754680204770,0.1232,4048.5,4048.3,2.4701621]
[1754680204771,3.9782,4048.5,4048.3,2.4701621]
[1754680204934,1.0920199,4049.8,4048.4,5.54117626]
[1754680205137,0.4298,4050.3,4049.2,3.0]
[1754680205357,0.1232,4049.6,4049.4,2.46948988]
[1754680205642,0.1232,4049.6,4048.8,0.1285]
[1754680205643,0.4298,4049.5,4048.8,0.1232]
[1754680205863,0.4298,4049.5,4049.2,2.46958074]
[1754680206240,0.4298,4049.5,4048.9,2.46980661]
[1754680206241,0.4298,4049.5,4049.0,2.46974482]
[1754680206557,0.4298,4049.5,4049.3,2.46955766]
[1754680206757,3.855,4049.4,4049.2,3.0]
[1754680207142,3.855,4049.4,4049.2,5.4695761]
[1754680207669,0.9152,4049.3,4048.8,0.1232]
[1754680207862,1.0384,4049.2,4048.6,2.46998745]
[1754680208255,1.0384,4049.2,4048.5,3.0]
[1754680208256,1.0384,4049.2,4048.7,2.46991562]
[1754680208651,0.1232,4049.2,4049.1,2.46968462]
[1754680209051,3.855,4049.2,4048.8,0.1232]
[1754680209242,0.9152,4049.1,4048.9,3.0]
[1754680209575,0.1232,4049.0,4048.8,2.46980962]
[1754680209773,3.9782,4049.0,4048.9,2.46980661]
[1754680210377,3.855,4049.0,4048.9,5.46980661]
[1754680210873,0.4298,4050.5,4049.1,2.46968462]
[1754680211073,0.1232,4050.0,4049.9,2.46918264]
[1754680211244,0.53089413,4050.9,4049.7,3.1232]
[1754680211451,1.19411663,4051.0,4050.5,12.27224429]
[1754680211650,0.1232,4050.7,4050.6,3.0]
[1754680212480,0.1232,4050.7,4050.2,3.0]
[1754680212680,0.4298,4050.6,4050.1,2.46902363]
[1754680212953,0.002,4050.3,4050.2,2.46901387]
[1754680213669,0.002,4050.3,4050.0,2.4691358]
[1754680213670,0.002,4050.3,4049.9,3.0]
[1754680213985,0.002,4050.3,4050.1,2.4690173]
[1754680214359,0.002,4050.3,4050.0,2.46912808]
[1754680214555,0.002,4050.3,4050.1,2.4690611]
[1754680215112,0.002,4050.3,4050.2,2.46901387]
[1754680216292,0.002,4050.3,4050.0,2.4691244]
[1754680216485,0.002,4050.3,4050.2,2.46901387]
[1754680218392,0.002,4050.3,4050.2,2.59221387]
[1754680223105,0.4318,4050.3,4050.2,2.46901387]
[1754680223404,0.9172,4050.3,4050.1,2.46907228]
[1754680223699,0.018,4050.2,4050.1,2.46907228]
[1754680223908,0.4478,4050.2,4050.1,2.46907228]
[1754680224285,0.018,4050.2,4050.1,2.46907228]
[1754680225603,0.9667,4050.2,4050.1,2.46907228]
[1754680225906,0.9667,4050.2,4050.0,0.1232]
[1754680226204,0.5149,4050.2,4050.1,3.0]
[1754680226588,0.9667,4050.2,4050.1,3.0]
[1754680227294,0.4698,4050.2,4050.1,5.46907483]
[1754680227670,0.4698,4050.2,4050.1,3.0]
[1754680228004,3.43571387,4050.2,4049.2,3.0]
[1754680228205,3.43571387,4050.2,4049.4,3.0]
[1754680228206,2.46918605,4050.0,4049.4,3.0]
[1754680228405,0.1232,4049.8,4049.4,3.0]
[1754680228613,0.018,4050.2,4049.7,15.27224429]
[1754680228808,3.853,4050.1,4050.0,2.46912013]
[1754680229181,0.018,4050.2,4050.1,5.46907483]
[1754680230485,3.871,4050.2,4050.1,5.46907483]
[1754680231508,3.871,4050.2,4049.9,3.0]
[1754680231712,3.871,4050.2,4050.1,2.46907483]
[1754680233308,0.018,4050.2,4050.1,2.59227483]
[1754680234190,0.9667,4050.2,4050.1,2.46907483]
[1754680234710,0.9667,4050.2,4049.8,3.0]
[1754680234887,0.9667,4050.2,4049.9,2.46918128]
[1754680234888,0.4518,4050.1,4049.9,2.46918128]
[1754680235085,0.4518,4050.1,4049.7,12.39544429]
[1754680235086,0.5149,4050.2,4049.7,14.86471004]
[1754680235294,0.5149,4050.2,4049.5,2.46943281]
[1754680235295,0.9487,4050.1,4049.5,2.46943281]
[1754680235495,0.1232,4049.8,4049.4,2.46946616]
[1754680235833,4.8007,4049.7,4049.2,0.1232]
[1754680236003,0.9487,4049.6,4049.0,0.001]
[1754680236185,0.1232,4049.3,4049.0,0.001]
[1754680236388,3.852,4049.2,4049.0,0.001]
[1754680236592,4.3038,4049.2,4049.0,0.001]
[1754680236829,0.6201,4049.3,4049.0,0.001]
[1754680236987,0.4518,4049.1,4049.0,0.001]
[1754680237485,0.1232,4049.3,4049.0,0.001]
[1754680237821,3.852,4049.5,4049.0,0.001]
[1754680238017,3.9752,4049.5,4049.0,2.47072723]
[1754680238220,4.427,4049.5,4049.0,2.47073143]
[1754680238536,3.852,4049.4,4049.0,2.47073143]
[1754680238833,3.852,4049.4,4049.0,2.4707425]
[1754680239042,0.1232,4049.5,4049.0,0.001]
[1754680239193,0.4518,4049.3,4049.0,0.001]
[1754680239394,2.46962362,4049.2,4049.0,0.001]
[1754680239692,3.9752,4049.1,4049.0,0.001]
[1754680239917,4.9239,4049.1,4049.0,0.001]
[1754680240609,7.39358462,4049.1,4049.0,0.001]
[1754680240922,8.37989958,4049.1,4049.0,3.07206462]
[1754680242732,5.91021496,4049.1,4049.0,3.07206462]
[1754680243094,0.575,4049.1,4049.0,3.07206462]
[1754680243314,4.428,4049.1,4049.0,3.07206462]
[1754680243519,0.1232,4049.1,4049.0,8.54181023]
[1754680244020,3.853,4049.3,4049.1,5.4696716]
[1754680244326,3.853,4049.3,4049.1,3.0]
[1754680244625,4.3048,4049.3,4049.1,3.0]
[1754680244801,3.853,4049.3,4049.2,5.54068824]
[1754680245526,0.4518,4049.7,4049.3,2.46956264]
[1754680245694,3.853,4049.6,4049.5,2.46939445]
[1754680246094,3.853,4049.6,4049.5,5.54045907]
[1754680246401,3.853,4049.6,4049.5,3.07106462]
[1754680246999,3.853,4049.6,4049.5,8.54050529]
[1754680247657,0.4969,4050.0,4049.6,3.0]
[1754680247935,4.8007,4049.9,4049.7,3.07106462]
[1754680248097,0.9487,4049.8,4049.7,3.07106462]
[1754680248952,0.9487,4049.8,4049.6,3.0]
[1754680249128,3.852,4049.9,4049.6,3.0]
[1754680249427,0.4518,4049.7,4049.6,5.46937969]
[1754680249619,0.4518,4049.7,4049.6,3.0]
[1754680250000,0.4518,4049.7,4049.6,5.46937969]
[1754680250522,0.4518,4049.7,4049.6,3.0]
[1754680251043,0.4518,4049.7,4049.6,5.46937969]
[1754680251337,0.4518,4049.7,4049.6,3.0]
[1754680252625,0.4518,4049.7,4049.6,5.46937969]
[1754680252862,0.4518,4049.7,4049.6,2.46937969]
[1754680253158,0.02,4050.2,4050.1,2.46907483]
[1754680253529,3.872,4050.2,4050.1,2.46907483]
[1754680253724,4.3238,4050.2,4050.0,3.0]
[1754680253948,4.3038,4050.1,4050.0,2.4691358]
[1754680254144,3.852,4050.1,4050.0,2.4691358]
[1754680254425,3.852,4050.1,4049.9,2.46918299]
[1754680254426,4.2863,4050.1,4049.9,2.46918299]
[1754680254630,3.852,4050.1,4049.9,2.46918299]
[1754680254851,0.4343,4050.0,4049.9,2.46918299]
[1754680255047,0.4343,4050.0,4049.8,2.46924313]
[1754680255249,0.4343,4050.0,4049.9,2.46919677]
[1754680255651,0.87745,4050.0,4049.7,0.1232]
[1754680255857,0.494,4049.9,4049.7,0.1232]
[1754680256054,0.9283,4049.9,4049.2,3.0]
[1754680256254,0.1232,4049.8,4049.2,0.1232]
[1754680256436,4.2863,4049.7,4049.2,0.1232]
[1754680256639,0.4343,4049.6,4049.2,0.1232]
[1754680256826,0.4343,4049.5,4049.3,3.0]
[1754680257027,0.4343,4049.5,4049.4,2.46950165]
[1754680257356,3.852,4049.7,4049.3,5.46954931]
[1754680257549,0.4343,4049.6,4049.3,3.0]
[1754680258954,0.4343,4049.6,4049.5,3.0]
[1754680259348,0.4343,4049.6,4049.5,6.07106462]
[1754680259860,3.851,4049.6,4049.5,6.07106462]
[1754680260031,3.851,4049.6,4049.5,8.54048914]
[1754680260235,3.851,4049.6,4049.5,6.05306462]
[1754680260441,4.2853,4049.6,4049.5,6.05306462]
[1754680261074,4.2853,4049.6,4049.4,2.46950033]
[1754680261275,4.2853,4049.6,4049.5,2.46944067]
[1754680261478,4.2853,4049.6,4049.4,2.46948279]
[1754680261769,4.2853,4049.6,4049.5,2.46944067]
[1754680262160,4.2853,4049.6,4049.3,3.07106462]
[1754680262359,4.2853,4049.6,4049.5,2.46944067]
[1754680263173,0.1232,4049.8,4049.6,2.46932802]
[1754680263375,0.1232,4049.8,4049.7,5.46931871]
[1754680263874,3.851,4050.0,4049.8,5.46923634]
[1754680264070,3.851,4050.0,4049.8,2.46923634]
[1754680264379,3.851,4050.0,4049.9,2.46919677]
[1754680264872,0.9283,4050.5,4049.9,2.46919677]
[1754680264873,0.002,4050.8,4050.5,2.468831]
[1754680265077,0.002,4050.8,4050.5,5.7157141]
[1754680265285,0.002,4050.8,4050.5,5.8389141]
[1754680265573,0.002,4050.8,4050.5,5.592031]
[1754680267054,4.7803,4050.6,4049.6,3.07106462]
[1754680267268,0.1232,4050.2,4049.8,12.27224429]
[1754680267577,0.4343,4050.1,4049.8,12.27224429]
[1754680267815,3.85,4050.0,4049.8,12.27224429]
[1754680267970,0.9283,4049.9,4049.8,12.27224429]
[1754680268172,0.9283,4049.9,4049.8,15.27224429]
[1754680268907,0.4343,4049.9,4049.8,17.74150203]
[1754680269207,0.4343,4049.9,4049.8,15.27224429]
[1754680269504,0.4343,4049.9,4049.0,0.001]
[1754680269505,1.60363308,4049.9,4049.0,0.001]
[1754680269679,2.46968462,4049.1,4049.0,0.001]
[1754680269880,6.31968462,4049.1,4049.0,0.001]
[1754680270403,4.7783,4049.1,4049.0,0.001]
[1754680270700,4.7783,4049.1,4049.0,0.0001]
[1754680271109,7.97276636,4049.1,4049.0,0.0001]
[1754680271880,5.50308174,4049.1,4049.0,0.0001]
[1754680273610,4.7783,4049.1,4049.0,0.0001]
[1754680274278,4.2843,4049.1,4049.0,0.0001]
[1754680275308,0.494,4049.6,4049.0,0.0001]
[1754680275473,2.90380722,4049.4,4049.0,0.0001]
[1754680275681,0.4343,4049.4,4049.0,0.0001]
[1754680275901,1.65306832,4049.3,4049.0,0.0001]
[1754680276086,3.85,4049.2,4049.0,0.0001]
[1754680276390,0.4343,4049.6,4049.0,0.0001]
[1754680276602,3.85,4049.5,4049.1,2.46968462]
[1754680276797,3.85,4049.5,4049.0,3.0001]
[1754680276798,0.4343,4049.4,4049.0,0.0001]
[1754680276999,0.9283,4049.4,4049.0,0.0001]
[1754680277200,4.344,4049.3,4049.0,0.0001]
[1754680277402,4.7783,4049.3,4049.0,0.0001]
[1754680277605,3.85,4049.3,4049.0,0.0001]
[1754680277809,0.9283,4049.2,4049.0,0.0001]
[1754680278211,0.9283,4049.1,4049.0,0.0001]
[1754680278885,4.7783,4049.1,4049.0,0.0001]
[1754680279215,4.9015,4049.1,4049.0,0.0001]
[1754680279715,0.1232,4049.1,4049.0,0.0001]
[1754680280012,3.9732,4049.1,4049.0,2.46984561]
[1754680281109,0.1232,4049.1,4049.0,2.46984561]
[1754680281311,0.1232,4049.1,4049.0,5.54091023]
[1754680281512,3.849,4049.1,4049.0,3.0001]
[1754680281676,0.1232,4049.5,4049.4,2.46950165]
[1754680281877,3.9722,4049.5,4049.3,5.46954728]
[1754680282115,4.4065,4049.5,4049.3,3.0]
[1754680282296,0.4343,4049.4,4049.3,3.0]
[1754680282493,0.4343,4049.4,4049.3,5.46956264]
[1754680282915,0.1232,4049.5,4049.4,2.46950165]
[1754680283120,3.9722,4049.5,4049.4,2.46950165]
[1754680284248,4.9201,4049.5,4049.0,3.0001]
[1754680284420,0.4751,4049.4,4049.1,2.46967482]
[1754680284626,0.4728,4049.3,4049.1,2.46967482]
[1754680285036,0.9479,4049.2,4049.0,0.0001]
[1754680285244,3.849,4049.1,4049.0,2.46984561]
[1754680285843,4.3218,4049.1,4049.0,0.0001]
[1754680286145,7.75859462,4049.1,4049.0,0.0001]
[1754680286636,5.28891,4049.1,4049.0,0.0001]
[1754680287141,7.75859462,4049.1,4049.0,0.0001]
[1754680287716,5.28891,4049.1,4049.0,0.0001]
[1754680288064,0.9479,4049.1,4049.0,0.0001]
[1754680288259,0.1232,4049.2,4049.0,0.0001]
[1754680288428,3.849,4049.1,4049.0,0.0001]
[1754680289514,0.1232,4049.2,4049.0,0.0001]
[1754680290015,3.851,4049.1,4049.0,0.0001]
[1754680290215,6.32068462,4049.1,4049.0,0.0001]
[1754680290422,4.11125308,4049.1,4049.0,0.0001]
[1754680290659,7.96025308,4049.1,4049.0,0.0001]
[1754680290954,2.47017266,4048.3,4047.7,0.1232]
[1754680291119,6.31817266,4048.3,4047.7,0.1232]
[1754680291321,3.9712,4048.3,4047.7,3.1232]
[1754680292055,3.9712,4048.3,4048.0,2.4703342]
[1754680292445,3.9712,4048.3,4047.9,2.47040607]
[1754680292642,3.9712,4048.3,4048.0,2.47035383]
[1754680293255,3.9712,4048.3,4048.1,2.47027839]
[1754680293758,3.9712,4048.3,4048.0,2.47034801]
[1754680294128,3.9712,4048.3,4048.2,5.47123368]
[1754680294355,3.848,4048.3,4048.2,15.27324429]
[1754680294753,3.848,4048.3,4048.2,17.74347797]
[1754680295359,0.1232,4048.4,4048.3,5.47017266]
[1754680295532,3.9722,4048.4,4048.3,3.0]
[1754680295731,0.1232,4048.4,4048.3,3.0]
[1754680295927,6.44131164,4048.4,4048.3,3.0]
[1754680296141,6.91411164,4048.4,4048.3,3.0]
[1754680296433,7.38921164,4048.4,4048.3,3.0]
[1754680296627,4.9191,4048.4,4048.2,3.07206462]
[1754680296824,0.4728,4048.3,4048.2,3.07206462]
[1754680297062,0.4728,4048.3,4048.2,6.07206462]
[1754680298985,3.9712,4048.4,4048.2,6.07206462]
[1754680299149,3.848,4048.4,4048.3,15.34330891]
[1754680299480,0.002,4049.1,4048.4,5.47008664]
[1754680299683,0.1232,4048.8,4048.6,3.0]
[1754680299884,4.7959,4048.7,4048.6,3.0]
[1754680300179,4.7959,4048.7,4048.5,3.07106462]
[1754680300180,2.46998962,4048.6,4048.5,3.07106462]
[1754680300389,2.47006506,4048.5,4047.8,15.27224429]
[1754680300677,0.1232,4048.3,4047.8,15.27224429]
[1754680300884,0.1232,4048.3,4048.0,2.47034332]
[1754680301185,0.1232,4048.3,4047.8,17.74267617]
[1754680301685,1.0711,4048.3,4047.8,15.27224429]
[1754680301856,3.54130282,4048.3,4047.8,15.27224429]
[1754680302054,1.0711,4048.3,4047.8,15.27224429]
[1754680302381,1.0711,4048.3,4047.9,2.47040386]
[1754680302582,1.0711,4048.3,4047.8,15.27224429]
[1754680302583,0.1232,4048.3,4048.0,2.47031342]
[1754680302753,0.1232,4048.3,4047.9,2.4704035]
[1754680302954,0.1232,4048.3,4047.8,15.27224429]
[1754680303161,0.9479,4048.2,4047.8,15.27224429]
[1754680303367,4.3198,4048.1,4047.8,15.27224429]
[1754680303685,0.4728,4048.0,4047.7,0.1232]
[1754680303884,0.1232,4047.8,4047.3,12.27224429]
[1754680304054,3.847,4047.7,4047.3,12.27224429]
[1754680304255,0.4728,4047.6,4047.4,3.0]
[1754680304453,0.9479,4047.6,4047.3,12.27224429]
[1754680304786,0.9479,4047.5,4046.7,14.74338605]
[1754680305005,0.1232,4047.3,4046.8,3.0]
[1754680305491,0.4728,4047.2,4046.8,2.47108499]
[1754680305694,3.847,4047.1,4046.8,5.47108499]
[1754680305869,3.847,4047.1,4046.8,2.47105231]
[1754680306188,3.847,4047.1,4046.7,14.74338059]
[1754680306388,4.3198,4047.1,4046.8,5.47103679]
[1754680307197,4.7949,4047.1,4046.5,0.1232]
[1754680307360,4.7949,4047.1,4046.8,2.47107147]
[1754680307557,4.7949,4047.1,4046.7,2.47110487]
[1754680307980,0.4728,4047.0,4046.7,2.47110487]
[1754680308186,0.4728,4047.0,4046.7,2.47110789]
[1754680308359,0.4728,4047.0,4046.6,2.47120586]
[1754680308559,0.4728,4047.0,4046.5,0.1232]
[1754680308560,0.4728,4047.0,4046.7,2.4710941]
[1754680308762,0.4728,4047.0,4046.8,2.47106817]
[1754680309362,0.4728,4047.0,4046.9,2.4710272]
[1754680309558,0.4728,4047.0,4046.8,2.47107037]
[1754680310370,0.9479,4046.9,4046.5,0.1232]
[1754680310569,2.47102447,4047.0,4046.5,2.59446009]
[1754680310570,0.9479,4046.8,4046.5,2.59446009]
[1754680310782,3.847,4046.7,4046.5,0.1232]
[1754680310980,0.1232,4046.6,4046.4,2.47131075]
[1754680311292,3.9702,4046.6,4046.3,2.47137762]
[1754680311870,0.1232,4046.6,4046.4,2.47128682]
[1754680312194,3.847,4046.5,4046.2,5.47140537]
[1754680312688,3.847,4046.5,4046.3,2.47137628]
[1754680313134,3.847,4046.5,4046.2,3.0]
[1754680313303,0.9479,4046.4,4046.1,2.4714656]
[1754680313490,0.1232,4046.3,4046.1,2.4714656]
[1754680313682,3.847,4046.2,4046.1,2.4714656]
[1754680314406,3.847,4046.2,4046.1,5.4714656]
[1754680315620,0.9618,4047.5,4046.2,3.0]
[1754680315805,3.847,4047.4,4047.2,2.47078775]
[1754680315989,3.847,4047.4,4047.3,2.47078299]
[1754680316304,4.8088,4047.4,4047.1,2.47090387]
[1754680316506,0.9618,4047.3,4047.0,2.47095245]
[1754680316689,0.4705,4047.2,4047.1,2.47090509]
[1754680317023,3.847,4047.4,4047.1,2.47090509]
[1754680317320,3.847,4047.3,4046.9,0.1232]
[1754680317523,3.847,4047.3,4047.1,2.47084799]
[1754680317684,0.9618,4047.2,4046.9,3.1232]
[1754680317884,0.4913,4047.2,4046.9,3.1232]
[1754680318113,0.4913,4047.2,4047.1,5.47090509]
[1754680318320,0.5937,4047.5,4047.3,2.47073245]
[1754680318622,3.847,4047.4,4047.3,2.47078299]
[1754680319521,0.1232,4047.5,4046.9,3.1232]
[1754680319700,3.847,4047.4,4046.9,3.1232]
[1754680319897,3.847,4047.4,4047.3,2.47078299]
[1754680320299,3.847,4047.4,4047.1,2.47089827]
[1754680320528,4.3175,4047.4,4047.2,2.47084388]
[1754680320712,4.8088,4047.4,4047.2,2.47084388]
[1754680320911,3.846,4047.3,4047.2,2.47084388]
[1754680321310,3.846,4047.3,4047.0,5.47095854]
[1754680321311,0.4705,4048.1,4047.6,2.47058713]
[1754680321617,3.02005923,4048.5,4047.2,0.1232]
[1754680321618,0.1232,4047.9,4047.2,0.1232]
[1754680321824,4.8078,4047.8,4047.2,0.1232]
[1754680321994,4.8078,4047.8,4047.5,2.4706076]
[1754680322187,0.9618,4047.7,4047.4,2.47070709]
[1754680322490,0.9618,4047.6,4047.4,2.47069808]
[1754680322712,0.9618,4047.6,4047.2,0.1232]
[1754680322713,3.846,4047.5,4047.3,5.47078298]
[1754680322896,0.9618,4047.4,4047.2,0.1232]
[1754680323097,0.9618,4047.4,4046.8,2.47104576]
[1754680323310,0.1232,4047.0,4046.8,2.47104576]
[1754680323491,3.846,4046.9,4046.8,2.47104576]
[1754680323687,3.846,4046.9,4046.8,17.74329005]
[1754680324098,0.1232,4047.3,4047.2,2.47084404]
[1754680324328,3.846,4047.3,4047.2,2.47079559]
[1754680324819,0.1232,4047.5,4046.8,12.39544429]
[1754680324820,0.1232,4047.5,4047.4,2.47072194]
[1754680325021,3.846,4047.5,4047.4,2.47072194]
[1754680325392,3.846,4047.5,4047.3,2.47077413]
[1754680325914,3.846,4047.5,4047.4,2.47072194]
[1754680326120,3.846,4047.5,4047.3,2.47077378]
[1754680326305,3.846,4047.5,4047.2,2.4708238]
[1754680326509,0.9618,4047.4,4047.3,2.47078299]
[1754680326711,0.9618,4047.4,4047.1,0.1232]
[1754680327308,0.4913,4047.4,4047.1,0.1232]
[1754680327511,0.9618,4047.3,4047.2,2.47084404]
[1754680327833,0.9618,4047.3,4047.2,5.47084404]
[1754680328044,0.9618,4047.3,4047.2,7.31]
[1754680328338,1.54277657,4047.3,4045.9,2.47163795]
[1754680328640,0.9618,4047.2,4046.6,2.47119873]
[1754680328808,3.845,4047.1,4046.6,2.47119873]
[1754680329118,1.085,4047.0,4046.5,2.47126623]
[1754680329312,0.9618,4046.9,4046.4,0.1232]
[1754680329731,0.9618,4046.8,4046.6,2.47118435]
[1754680329928,4.3155,4046.7,4046.4,0.1232]
[1754680330243,4.8068,4046.7,4046.4,0.1232]
[1754680330539,0.4705,4046.6,4046.4,2.59452437]
[1754680330709,3.845,4046.7,4046.5,2.47127146]
[1754680331043,3.845,4046.7,4046.4,2.59453159]
[1754680331241,2.4707227,4047.4,4045.8,14.74490117]
[1754680331242,0.6634578,4047.9,4047.8,2.47047779]
[1754680331459,0.002,4048.7,4047.9,3.0]
[1754680331740,0.002,4048.7,4048.6,5.59318962]
[1754680332331,0.002,4048.7,4048.6,5.82402437]
[1754680333236,0.002,4048.7,4048.6,3.35403475]
[1754680333437,0.9638,4048.7,4048.6,3.23083475]
[1754680333619,1.44468,4048.7,4048.6,0.23083475]
[1754680334754,0.9638,4048.7,4048.6,0.23083475]
[1754680335255,0.4725,4048.7,4048.6,2.70082437]
[1754680335983,0.9638,4048.7,4048.6,0.23083475]
[1754680337365,3.98372861,4048.7,4048.6,0.23083475]
[1754680337549,3.0200246,4048.6,4047.8,2.47046724]
[1754680337861,0.1232,4048.1,4047.9,0.23041523]